[Event "Titled Tuesday Blitz February 21 Early 2023"]
[White "Erigaisi Arjun"]
[Black "Livaic, Leon"]
[WhiteFideId "35009192"]
[BlackFideId "14531534"]
[WhiteElo "2701"]
[BlackElo "2579"]
[Result "1-0"]
[Round "10"]
[TimeControl "180+2"]
[Date "2023.02.21"]
[WhiteClock "0:00:45"]
[BlackClock "0:00:10"]

1. c4 {[%clk 0:02:56]}  e6 {[%clk 0:02:59]} 2. Nc3 {[%clk 0:02:56]}  d5 {[%clk 0:03:00]} 3. d4 {[%clk 0:02:57]}  Nf6 {[%clk 0:03:01]} 4. cxd5 {[%clk 0:02:57]}  exd5 {[%clk 0:03:02]} 5. Bg5 {[%clk 0:02:57]}  Be7 {[%clk 0:03:02]} 6. e3 {[%clk 0:02:57]}  O-O {[%clk 0:03:03]} 7. Bd3 {[%clk 0:02:58]}  Re8 {[%clk 0:03:03]} 8. Nge2 {[%clk 0:02:57]}  c6 {[%clk 0:03:02]} 9. Qc2 {[%clk 0:02:56]}  h6 {[%clk 0:03:02]} 10. Bh4 {[%clk 0:02:57]}  a5 {[%clk 0:02:58]} 11. f3 {[%clk 0:02:55]}  Na6 {[%clk 0:02:58]} 12. a3 {[%clk 0:02:55]}  Nc7 {[%clk 0:02:50]} 13. O-O {[%clk 0:02:52]}  Ne6 {[%clk 0:02:46]} 14. Kh1 {[%clk 0:02:49]}  b5 {[%clk 0:02:43]} 15. Bf2 {[%clk 0:02:46]}  Bb7 {[%clk 0:02:38]} 16. Ng3 {[%clk 0:02:41]}  Rc8 {[%clk 0:02:11]} 17. Rad1 {[%clk 0:02:33]}  b4 {[%clk 0:02:10]} 18. Nce2 {[%clk 0:02:30]}  c5 {[%clk 0:02:08]} 19. dxc5 {[%clk 0:02:29]}  Nxc5 {[%clk 0:01:50]} 20. Bf5 {[%clk 0:02:29]}  Rc7 {[%clk 0:01:37]} 21. Bg1 {[%clk 0:02:29]}  b3 {[%clk 0:01:31]} 22. Qd2 {[%clk 0:02:26]}  g6 {[%clk 0:01:24]} 23. Bb1 {[%clk 0:02:25]}  Rc8 {[%clk 0:01:23]} 24. e4 {[%clk 0:02:21]}  Bf8 {[%clk 0:01:15]} 25. Qf4 {[%clk 0:01:55]}  Qd6 {[%clk 0:01:06]} 26. Bd4 {[%clk 0:01:54]}  Ncd7 {[%clk 0:00:48]} 27. Qh4 {[%clk 0:01:45]}  Bg7 {[%clk 0:00:30]} 28. Nc3 {[%clk 0:01:44]}  dxe4 {[%clk 0:00:27]} 29. fxe4 {[%clk 0:01:35]}  Qe6 {[%clk 0:00:26]} 30. Qf4 {[%clk 0:01:21]}  Ne5 {[%clk 0:00:21]} 31. Na4 {[%clk 0:01:09]}  Ba8 {[%clk 0:00:12]} 32. h3 {[%clk 0:01:06]}  Nc6 {[%clk 0:00:12]} 33. Bc3 {[%clk 0:01:05]}  Ne5 {[%clk 0:00:11]} 34. Bd4 {[%clk 0:00:55]}  Nfd7 {[%clk 0:00:11]} 35. Ne2 {[%clk 0:00:48]}  Rc4 {[%clk 0:00:10]} 36. Nac3 {[%clk 0:00:46]}  Nc6 {[%clk 0:00:11]} 37. Bxg7 {[%clk 0:00:46]}  Kxg7 {[%clk 0:00:12]} 38. Rd6 {[%clk 0:00:45]}  Qe7 {[%clk 0:00:10]} 39. Nd5 {[%clk 0:00:45]} 1-0


[Site "https://www.chess.com"]

[Event "Titled Tuesday Blitz February 21 Early 2023"]
[White "Makarian, Rudik"]
[Black "Bernadskiy, Vitaliy"]
[WhiteFideId "44105681"]
[BlackFideId "14100371"]
[WhiteElo "2545"]
[BlackElo "2592"]
[Result "1-0"]
[Round "10"]
[TimeControl "180+2"]
[Date "2023.02.21"]
[WhiteClock "0:00:25"]
[BlackClock "0:00:02"]

1. d4 {[%clk 0:03:00]}  Nf6 {[%clk 0:02:59]} 2. c4 {[%clk 0:03:00]}  e6 {[%clk 0:03:00]} 3. Nf3 {[%clk 0:03:00]}  d5 {[%clk 0:03:00]} 4. Nc3 {[%clk 0:03:00]}  Be7 {[%clk 0:02:58]} 5. g3 {[%clk 0:02:56]}  O-O {[%clk 0:02:51]} 6. Bg2 {[%clk 0:02:56]}  dxc4 {[%clk 0:02:49]} 7. Ne5 {[%clk 0:02:57]}  c5 {[%clk 0:02:44]} 8. dxc5 {[%clk 0:02:57]}  Qc7 {[%clk 0:02:37]} 9. Nxc4 {[%clk 0:02:57]}  Qxc5 {[%clk 0:02:36]} 10. b3 {[%clk 0:02:58]}  Rd8 {[%clk 0:02:35]} 11. Ba3 {[%clk 0:02:58]}  Rxd1+ {[%clk 0:02:31]} 12. Rxd1 {[%clk 0:02:59]}  Qh5 {[%clk 0:01:06]} 13. Bxe7 {[%clk 0:02:59]}  Nbd7 {[%clk 0:01:00]} 14. O-O {[%clk 0:02:56]}  h6 {[%clk 0:00:51]} 15. Rd4 {[%clk 0:02:18]}  Kh7 {[%clk 0:00:40]} 16. Rfd1 {[%clk 0:02:14]}  Nb6 {[%clk 0:00:38]} 17. Nd6 {[%clk 0:01:49]}  Nbd5 {[%clk 0:00:36]} 18. Nxd5 {[%clk 0:01:25]}  Nxd5 {[%clk 0:00:37]} 19. Bf3 {[%clk 0:01:16]}  Qg6 {[%clk 0:00:26]} 20. Rg4 {[%clk 0:01:05]}  Nxe7 {[%clk 0:00:22]} 21. Rxg6 {[%clk 0:01:04]}  Nxg6 {[%clk 0:00:20]} 22. Nxf7 {[%clk 0:01:03]}  Kg8 {[%clk 0:00:12]} 23. Nd6 {[%clk 0:01:02]}  Rb8 {[%clk 0:00:11]} 24. Nxc8 {[%clk 0:00:59]}  Rxc8 {[%clk 0:00:12]} 25. Rd7 {[%clk 0:00:59]}  b5 {[%clk 0:00:11]} 26. Rxa7 {[%clk 0:00:58]}  Ne5 {[%clk 0:00:11]} 27. Kg2 {[%clk 0:00:58]}  Rc2 {[%clk 0:00:10]} 28. a4 {[%clk 0:00:57]}  Rb2 {[%clk 0:00:09]} 29. axb5 {[%clk 0:00:38]}  Nxf3 {[%clk 0:00:06]} 30. exf3 {[%clk 0:00:35]}  Rxb3 {[%clk 0:00:07]} 31. Rb7 {[%clk 0:00:33]}  g5 {[%clk 0:00:05]} 32. b6 {[%clk 0:00:33]}  e5 {[%clk 0:00:04]} 33. Kf1 {[%clk 0:00:25]}  Rb2 {[%clk 0:00:02]} 34. Ke1 {[%clk 0:00:25]} 1-0


[Site "https://www.chess.com"]

[Event "Titled Tuesday Blitz February 21 Early 2023"]
[White "Andreikin, Dmitry"]
[Black "Sanal, Vahap"]
[WhiteFideId "4158814"]
[BlackFideId "6300545"]
[WhiteElo "2729"]
[BlackElo "2600"]
[Result "1/2-1/2"]
[Round "10"]
[TimeControl "180+2"]
[Date "2023.02.21"]
[WhiteClock "0:00:04"]
[BlackClock "0:00:02"]

1. Nf3 {[%clk 0:03:00]}  d5 {[%clk 0:02:56]} 2. d4 {[%clk 0:02:57]}  Nf6 {[%clk 0:02:56]} 3. e3 {[%clk 0:02:55]}  e6 {[%clk 0:02:50]} 4. Bd3 {[%clk 0:02:55]}  Be7 {[%clk 0:02:50]} 5. O-O {[%clk 0:02:55]}  O-O {[%clk 0:02:51]} 6. b3 {[%clk 0:02:55]}  b6 {[%clk 0:02:49]} 7. Bb2 {[%clk 0:02:54]}  Bb7 {[%clk 0:02:49]} 8. Nbd2 {[%clk 0:02:53]}  c5 {[%clk 0:02:49]} 9. Ne5 {[%clk 0:02:53]}  Nbd7 {[%clk 0:02:48]} 10. f4 {[%clk 0:02:53]}  Ne4 {[%clk 0:02:46]} 11. Rf3 {[%clk 0:02:30]}  f6 {[%clk 0:02:30]} 12. Nxd7 {[%clk 0:02:27]}  Qxd7 {[%clk 0:02:30]} 13. Rh3 {[%clk 0:02:26]}  g6 {[%clk 0:02:26]} 14. dxc5 {[%clk 0:02:08]}  Bxc5 {[%clk 0:01:40]} 15. Nxe4 {[%clk 0:01:34]}  dxe4 {[%clk 0:01:39]} 16. Bc4 {[%clk 0:01:34]}  Qxd1+ {[%clk 0:01:10]} 17. Rxd1 {[%clk 0:01:33]}  Rad8 {[%clk 0:01:04]} 18. Rxd8 {[%clk 0:01:05]}  Rxd8 {[%clk 0:01:04]} 19. Bxf6 {[%clk 0:01:06]}  Rd1+ {[%clk 0:00:58]} 20. Kf2 {[%clk 0:01:05]}  Bd5 {[%clk 0:00:57]} 21. Ke2 {[%clk 0:00:41]}  Rg1 {[%clk 0:00:51]} 22. Bxd5 {[%clk 0:00:37]}  exd5 {[%clk 0:00:51]} 23. Rg3 {[%clk 0:00:37]}  Kf7 {[%clk 0:00:46]} 24. Bb2 {[%clk 0:00:36]}  Rb1 {[%clk 0:00:46]} 25. Bc3 {[%clk 0:00:32]}  Rc1 {[%clk 0:00:45]} 26. Kd2 {[%clk 0:00:32]}  Rf1 {[%clk 0:00:45]} 27. Ke2 {[%clk 0:00:30]}  Rc1 {[%clk 0:00:40]} 28. Kd2 {[%clk 0:00:31]}  Rf1 {[%clk 0:00:25]} 29. h4 {[%clk 0:00:22]}  b5 {[%clk 0:00:14]} 30. h5 {[%clk 0:00:19]}  b4 {[%clk 0:00:12]} 31. hxg6+ {[%clk 0:00:18]}  hxg6 {[%clk 0:00:13]} 32. Be5 {[%clk 0:00:18]}  Rf2+ {[%clk 0:00:13]} 33. Kd1 {[%clk 0:00:18]}  Rf1+ {[%clk 0:00:13]} 34. Ke2 {[%clk 0:00:18]}  Rc1 {[%clk 0:00:13]} 35. Kd2 {[%clk 0:00:18]}  Rf1 {[%clk 0:00:14]} 36. Ke2 {[%clk 0:00:18]}  Rc1 {[%clk 0:00:13]} 37. Kd2 {[%clk 0:00:19]}  Rf1 {[%clk 0:00:14]} 38. Rh3 {[%clk 0:00:13]}  Rf2+ {[%clk 0:00:14]} 39. Kd1 {[%clk 0:00:14]}  Rxg2 {[%clk 0:00:14]} 40. Bb2 {[%clk 0:00:09]}  a5 {[%clk 0:00:14]} 41. Bc1 {[%clk 0:00:09]}  Ke6 {[%clk 0:00:13]} 42. Bd2 {[%clk 0:00:08]}  d4 {[%clk 0:00:11]} 43. exd4 {[%clk 0:00:07]}  Bxd4 {[%clk 0:00:12]} 44. Be3 {[%clk 0:00:05]}  Bxe3 {[%clk 0:00:12]} 45. Rxe3 {[%clk 0:00:06]}  Kf5 {[%clk 0:00:13]} 46. c4 {[%clk 0:00:05]}  Kxf4 {[%clk 0:00:12]} 47. Re2 {[%clk 0:00:05]}  Rg1+ {[%clk 0:00:09]} 48. Re1 {[%clk 0:00:06]}  Rg2 {[%clk 0:00:05]} 49. Re2 {[%clk 0:00:06]}  Rg3 {[%clk 0:00:04]} 50. Kd2 {[%clk 0:00:06]}  Ke5 {[%clk 0:00:04]} 51. Re3 {[%clk 0:00:05]}  Rg2+ {[%clk 0:00:04]} 52. Re2 {[%clk 0:00:05]}  Rg1 {[%clk 0:00:04]} 53. Re1 {[%clk 0:00:05]}  Rg3 {[%clk 0:00:04]} 54. Re3 {[%clk 0:00:06]}  Rg4 {[%clk 0:00:05]} 55. Rh3 {[%clk 0:00:06]}  Kd4 {[%clk 0:00:06]} 56. Rh8 {[%clk 0:00:05]}  Rg2+ {[%clk 0:00:06]} 57. Ke1 {[%clk 0:00:05]}  Rxa2 {[%clk 0:00:07]} 58. Rd8+ {[%clk 0:00:05]}  Kc3 {[%clk 0:00:07]} 59. c5 {[%clk 0:00:06]}  Kxb3 {[%clk 0:00:08]} 60. Rd2 {[%clk 0:00:05]}  Ra1+ {[%clk 0:00:04]} 61. Rd1 {[%clk 0:00:05]}  Ra3 {[%clk 0:00:03]} 62. c6 {[%clk 0:00:02]}  Kc2 {[%clk 0:00:04]} 63. Rd2+ {[%clk 0:00:02]}  Kc1 {[%clk 0:00:04]} 64. Rd1+ {[%clk 0:00:03]}  Kc2 {[%clk 0:00:04]} 65. Rd2+ {[%clk 0:00:03]}  Kb1 {[%clk 0:00:02]} 66. Rd1+ {[%clk 0:00:03]}  Kb2 {[%clk 0:00:03]} 67. Rd2+ {[%clk 0:00:04]}  Kc1 {[%clk 0:00:01]} 68. Rd1+ {[%clk 0:00:04]}  Kc2 {[%clk 0:00:02]} 1/2-1/2


[Site "https://www.chess.com"]

[Event "Titled Tuesday Blitz February 21 Early 2023"]
[White "Kovalenko, Igor"]
[Black "Yuan, Qingyu"]
[WhiteFideId "14117908"]
[BlackFideId "8609772"]
[WhiteElo "2674"]
[BlackElo "2373"]
[Result "1-0"]
[Round "10"]
[TimeControl "180+2"]
[Date "2023.02.21"]
[WhiteClock "0:02:23"]
[BlackClock "0:00:53"]

1. c4 {[%clk 0:03:00]}  e6 {[%clk 0:03:00]} 2. Nc3 {[%clk 0:03:01]}  d5 {[%clk 0:03:00]} 3. d4 {[%clk 0:03:01]}  Be7 {[%clk 0:03:00]} 4. Nf3 {[%clk 0:03:01]}  Nf6 {[%clk 0:03:00]} 5. Bf4 {[%clk 0:03:02]}  O-O {[%clk 0:03:01]} 6. e3 {[%clk 0:03:02]}  Nbd7 {[%clk 0:03:01]} 7. Qc2 {[%clk 0:03:01]}  c5 {[%clk 0:02:53]} 8. Rd1 {[%clk 0:03:01]}  cxd4 {[%clk 0:02:47]} 9. Rxd4 {[%clk 0:03:01]}  Qa5 {[%clk 0:02:38]} 10. a3 {[%clk 0:03:01]}  Nb6 {[%clk 0:02:28]} 11. Bc7 {[%clk 0:02:58]}  Qc5 {[%clk 0:02:14]} 12. Bxb6 {[%clk 0:02:57]}  axb6 {[%clk 0:02:13]} 13. cxd5 {[%clk 0:02:56]}  Nxd5 {[%clk 0:02:07]} 14. Rc4 {[%clk 0:02:44]}  Qa5 {[%clk 0:02:02]} 15. Bd3 {[%clk 0:02:43]}  g6 {[%clk 0:01:47]} 16. Ra4 {[%clk 0:02:42]}  Qc5 {[%clk 0:01:22]} 17. Rxa8 {[%clk 0:02:42]}  Nxe3 {[%clk 0:01:19]} 18. fxe3 {[%clk 0:02:39]}  Qxe3+ {[%clk 0:01:20]} 19. Ne2 {[%clk 0:02:38]}  Bc5 {[%clk 0:01:19]} 20. Rf1 {[%clk 0:02:36]}  Rd8 {[%clk 0:01:19]} 21. b4 {[%clk 0:02:31]}  Bf8 {[%clk 0:01:04]} 22. Rxc8 {[%clk 0:02:26]}  Rxd3 {[%clk 0:01:03]} 23. Rc3 {[%clk 0:02:25]}  Rxc3 {[%clk 0:01:03]} 24. Qxc3 {[%clk 0:02:25]}  Qe4 {[%clk 0:01:03]} 25. Kf2 {[%clk 0:02:24]}  g5 {[%clk 0:00:53]} 26. Qe3 {[%clk 0:02:23]} 1-0


[Site "https://www.chess.com"]

[Event "Titled Tuesday Blitz February 21 Early 2023"]
[White "Ahmadzada, Ahmad"]
[Black "Timofeev, Artyom"]
[WhiteFideId "13413007"]
[BlackFideId "4140419"]
[WhiteElo "2488"]
[BlackElo "2567"]
[Result "1/2-1/2"]
[Round "10"]
[TimeControl "180+2"]
[Date "2023.02.21"]
[WhiteClock "0:00:17"]
[BlackClock "0:01:07"]

1. Nf3 {[%clk 0:03:00]}  Nf6 {[%clk 0:02:59]} 2. g3 {[%clk 0:03:00]}  g6 {[%clk 0:02:59]} 3. Bg2 {[%clk 0:03:01]}  Bg7 {[%clk 0:02:59]} 4. O-O {[%clk 0:03:01]}  O-O {[%clk 0:02:59]} 5. c4 {[%clk 0:03:00]}  d6 {[%clk 0:02:58]} 6. Nc3 {[%clk 0:02:59]}  Nc6 {[%clk 0:02:57]} 7. d3 {[%clk 0:02:59]}  a6 {[%clk 0:02:55]} 8. Rb1 {[%clk 0:02:50]}  Rb8 {[%clk 0:02:54]} 9. b4 {[%clk 0:02:38]}  b5 {[%clk 0:02:54]} 10. cxb5 {[%clk 0:02:36]}  axb5 {[%clk 0:02:54]} 11. a4 {[%clk 0:02:37]}  Ba6 {[%clk 0:02:22]} 12. axb5 {[%clk 0:02:22]}  Bxb5 {[%clk 0:02:22]} 13. Nxb5 {[%clk 0:02:23]}  Rxb5 {[%clk 0:02:22]} 14. Qa4 {[%clk 0:02:23]}  Qb8 {[%clk 0:02:22]} 15. Bd2 {[%clk 0:02:18]}  Nd5 {[%clk 0:02:09]} 16. Rfc1 {[%clk 0:02:10]}  Qb6 {[%clk 0:01:50]} 17. e4 {[%clk 0:01:40]}  Ndxb4 {[%clk 0:01:44]} 18. Rxc6 {[%clk 0:01:24]}  Qxc6 {[%clk 0:01:44]} 19. Rxb4 {[%clk 0:01:24]}  Rfb8 {[%clk 0:01:44]} 20. d4 {[%clk 0:01:10]}  Qb6 {[%clk 0:01:33]} 21. Rxb5 {[%clk 0:00:52]}  Qxb5 {[%clk 0:01:33]} 22. Qxb5 {[%clk 0:00:52]}  Rxb5 {[%clk 0:01:33]} 23. d5 {[%clk 0:00:40]}  c6 {[%clk 0:01:16]} 24. dxc6 {[%clk 0:00:34]}  Rc5 {[%clk 0:01:16]} 25. Kf1 {[%clk 0:00:25]}  Rxc6 {[%clk 0:01:16]} 26. Ke2 {[%clk 0:00:25]}  Ra6 {[%clk 0:01:16]} 27. Ne1 {[%clk 0:00:23]}  Ra3 {[%clk 0:01:13]} 28. Nd3 {[%clk 0:00:22]}  Bc3 {[%clk 0:01:12]} 29. Bxc3 {[%clk 0:00:19]}  Rxc3 {[%clk 0:01:11]} 30. Ke3 {[%clk 0:00:19]}  Ra3 {[%clk 0:01:10]} 31. h4 {[%clk 0:00:18]}  Kf8 {[%clk 0:01:08]} 32. Bf3 {[%clk 0:00:17]}  e6 {[%clk 0:01:08]} 33. Be2 {[%clk 0:00:18]}  Ke7 {[%clk 0:01:08]} 34. Kd2 {[%clk 0:00:18]}  Ra2+ {[%clk 0:01:07]} 35. Ke3 {[%clk 0:00:17]} 1/2-1/2


[Site "https://www.chess.com"]

[Event "Titled Tuesday Blitz February 21 Early 2023"]
[White "Real_OceanStorm"]
[Black "Bharath Subramaniyam H"]
[BlackFideId "46634827"]
[WhiteElo "2781"]
[BlackElo "2517"]
[Result "0-1"]
[Round "10"]
[TimeControl "180+2"]
[Date "2023.02.21"]
[WhiteClock "0:00:41"]
[BlackClock "0:01:26"]

1. e4 {[%clk 0:03:00]}  c5 {[%clk 0:02:59]} 2. Nf3 {[%clk 0:03:00]}  Nf6 {[%clk 0:02:59]} 3. c3 {[%clk 0:03:00]}  Nxe4 {[%clk 0:02:59]} 4. d4 {[%clk 0:03:00]}  cxd4 {[%clk 0:02:58]} 5. cxd4 {[%clk 0:03:01]}  d5 {[%clk 0:02:58]} 6. Ne5 {[%clk 0:03:01]}  Nc6 {[%clk 0:02:56]} 7. Nc3 {[%clk 0:03:01]}  Nxc3 {[%clk 0:02:55]} 8. bxc3 {[%clk 0:03:01]}  Nxe5 {[%clk 0:02:55]} 9. dxe5 {[%clk 0:03:02]}  e6 {[%clk 0:02:54]} 10. h4 {[%clk 0:03:00]}  Qc7 {[%clk 0:02:54]} 11. Bb5+ {[%clk 0:02:59]}  Bd7 {[%clk 0:02:54]} 12. Bxd7+ {[%clk 0:03:00]}  Qxd7 {[%clk 0:02:50]} 13. Be3 {[%clk 0:02:57]}  Rc8 {[%clk 0:02:49]} 14. Bxa7 {[%clk 0:02:50]}  Rxc3 {[%clk 0:02:43]} 15. O-O {[%clk 0:02:49]}  Bc5 {[%clk 0:02:41]} 16. Qd2 {[%clk 0:02:33]}  Rc4 {[%clk 0:02:39]} 17. Bxc5 {[%clk 0:02:32]}  Rxc5 {[%clk 0:02:39]} 18. f4 {[%clk 0:02:25]}  O-O {[%clk 0:02:38]} 19. h5 {[%clk 0:02:23]}  h6 {[%clk 0:02:37]} 20. Rab1 {[%clk 0:02:22]}  Rfc8 {[%clk 0:02:33]} 21. Rb2 {[%clk 0:02:19]}  d4 {[%clk 0:02:14]} 22. Rd1 {[%clk 0:01:53]}  Rd5 {[%clk 0:02:11]} 23. Rdb1 {[%clk 0:01:41]}  b5 {[%clk 0:02:10]} 24. a4 {[%clk 0:01:40]}  bxa4 {[%clk 0:02:08]} 25. Rb7 {[%clk 0:01:40]}  Qe8 {[%clk 0:02:07]} 26. Ra7 {[%clk 0:01:40]}  d3 {[%clk 0:02:06]} 27. Rb2 {[%clk 0:01:28]}  Kh7 {[%clk 0:01:51]} 28. Rbb7 {[%clk 0:01:26]}  Rc2 {[%clk 0:01:50]} 29. Qd1 {[%clk 0:01:26]}  Kg8 {[%clk 0:01:37]} 30. Re7 {[%clk 0:01:15]}  Qf8 {[%clk 0:01:32]} 31. Kh2 {[%clk 0:01:04]}  d2 {[%clk 0:01:28]} 32. Qxc2 {[%clk 0:00:41]}  d1=Q {[%clk 0:01:26]} 0-1


[Site "https://www.chess.com"]

[Event "Titled Tuesday Blitz February 21 Early 2023"]
[White "Orlov, Georgi"]
[Black "Madaminov, Mukhiddin"]
[WhiteFideId "2011271"]
[BlackFideId "14210703"]
[WhiteElo "2453"]
[BlackElo "2422"]
[Result "0-1"]
[Round "10"]
[TimeControl "180+2"]
[Date "2023.02.21"]
[WhiteClock "0:00:04"]
[BlackClock "0:00:04"]

1. e4 {[%clk 0:03:00]}  e5 {[%clk 0:03:00]} 2. Nf3 {[%clk 0:03:00]}  Nc6 {[%clk 0:03:00]} 3. Nc3 {[%clk 0:02:58]}  Nf6 {[%clk 0:02:59]} 4. Bb5 {[%clk 0:02:57]}  Bb4 {[%clk 0:02:57]} 5. O-O {[%clk 0:02:56]}  O-O {[%clk 0:02:57]} 6. d3 {[%clk 0:02:56]}  d6 {[%clk 0:02:57]} 7. Bg5 {[%clk 0:02:53]}  Bxc3 {[%clk 0:02:57]} 8. bxc3 {[%clk 0:02:52]}  Ne7 {[%clk 0:02:58]} 9. Nh4 {[%clk 0:02:47]}  Ng6 {[%clk 0:02:46]} 10. Nxg6 {[%clk 0:02:46]}  fxg6 {[%clk 0:02:46]} 11. Bc4+ {[%clk 0:02:42]}  Kh8 {[%clk 0:02:45]} 12. f4 {[%clk 0:02:40]}  h6 {[%clk 0:02:33]} 13. Bxf6 {[%clk 0:02:39]}  gxf6 {[%clk 0:02:14]} 14. Qd2 {[%clk 0:02:35]}  Kg7 {[%clk 0:02:09]} 15. Rf2 {[%clk 0:02:35]}  Qe7 {[%clk 0:02:02]} 16. fxe5 {[%clk 0:02:30]}  dxe5 {[%clk 0:01:53]} 17. Raf1 {[%clk 0:02:28]}  Bd7 {[%clk 0:01:54]} 18. d4 {[%clk 0:02:09]}  Bc6 {[%clk 0:01:51]} 19. d5 {[%clk 0:01:52]}  Bd7 {[%clk 0:01:48]} 20. Bd3 {[%clk 0:01:52]}  a5 {[%clk 0:01:47]} 21. c4 {[%clk 0:01:51]}  Qc5 {[%clk 0:01:44]} 22. Kh1 {[%clk 0:01:50]}  Ra6 {[%clk 0:01:43]} 23. Rf3 {[%clk 0:01:48]}  Rd6 {[%clk 0:01:35]} 24. Rb1 {[%clk 0:01:46]}  b6 {[%clk 0:01:32]} 25. h3 {[%clk 0:01:41]}  Qd4 {[%clk 0:01:24]} 26. c3 {[%clk 0:01:40]}  Qc5 {[%clk 0:01:23]} 27. Kh2 {[%clk 0:01:35]}  Bc8 {[%clk 0:01:23]} 28. Rbf1 {[%clk 0:01:32]}  c6 {[%clk 0:01:17]} 29. Rb1 {[%clk 0:01:27]}  Ba6 {[%clk 0:01:07]} 30. Qe3 {[%clk 0:01:20]}  Qxe3 {[%clk 0:00:46]} 31. Rxe3 {[%clk 0:01:20]}  cxd5 {[%clk 0:00:47]} 32. cxd5 {[%clk 0:01:17]}  Bxd3 {[%clk 0:00:45]} 33. Rxd3 {[%clk 0:01:17]}  f5 {[%clk 0:00:46]} 34. c4 {[%clk 0:01:13]}  Rc8 {[%clk 0:00:44]} 35. Re1 {[%clk 0:00:34]}  Kf6 {[%clk 0:00:13]} 36. Rde3 {[%clk 0:00:35]}  Rxc4 {[%clk 0:00:06]} 37. exf5 {[%clk 0:00:34]}  gxf5 {[%clk 0:00:03]} 38. Rxe5 {[%clk 0:00:34]}  Re4 {[%clk 0:00:04]} 39. R1xe4 {[%clk 0:00:33]}  fxe4 {[%clk 0:00:05]} 40. Rxe4 {[%clk 0:00:28]}  Rxd5 {[%clk 0:00:05]} 41. Rc4 {[%clk 0:00:24]}  b5 {[%clk 0:00:04]} 42. Rc6+ {[%clk 0:00:23]}  Kg5 {[%clk 0:00:04]} 43. a3 {[%clk 0:00:21]}  h5 {[%clk 0:00:04]} 44. Rb6 {[%clk 0:00:18]}  Kf4 {[%clk 0:00:04]} 45. Ra6 {[%clk 0:00:14]}  a4 {[%clk 0:00:03]} 46. Rb6 {[%clk 0:00:14]}  Ke4 {[%clk 0:00:02]} 47. Kg3 {[%clk 0:00:14]}  Kd4 {[%clk 0:00:01]} 48. Kf4 {[%clk 0:00:14]}  Kc5 {[%clk 0:00:01]} 49. Rb8 {[%clk 0:00:12]}  Kc4 {[%clk 0:00:01]} 50. g4 {[%clk 0:00:12]}  hxg4 {[%clk 0:00:01]} 51. hxg4 {[%clk 0:00:12]}  Kb3 {[%clk 0:00:01]} 52. g5 {[%clk 0:00:12]}  Kxa3 {[%clk 0:00:02]} 53. g6 {[%clk 0:00:13]}  Rd6 {[%clk 0:00:01]} 54. Rxb5 {[%clk 0:00:09]}  Rxg6 {[%clk 0:00:01]} 55. Ke3 {[%clk 0:00:09]}  Rd6 {[%clk 0:00:02]} 56. Rb8 {[%clk 0:00:09]}  Ka2 {[%clk 0:00:02]} 57. Ke2 {[%clk 0:00:09]}  a3 {[%clk 0:00:02]} 58. Rb7 {[%clk 0:00:10]}  Ka1 {[%clk 0:00:02]} 59. Rb8 {[%clk 0:00:10]}  Rh6 {[%clk 0:00:03]} 60. Kd2 {[%clk 0:00:10]}  Rh2+ {[%clk 0:00:03]} 61. Kc1 {[%clk 0:00:10]}  Rb2 {[%clk 0:00:04]} 62. Ra8 {[%clk 0:00:09]}  Ka2 {[%clk 0:00:04]} 63. Ra7 {[%clk 0:00:07]}  Rb4 {[%clk 0:00:04]} 64. Kc2 {[%clk 0:00:06]}  Rc4+ {[%clk 0:00:04]} 65. Kd1 {[%clk 0:00:04]}  Kb3 {[%clk 0:00:04]} 0-1


[Site "https://www.chess.com"]

[Event "Titled Tuesday Blitz February 21 Early 2023"]
[White "Spata, German"]
[Black "Howell, David W L"]
[WhiteFideId "113026"]
[BlackFideId "410608"]
[WhiteElo "2383"]
[BlackElo "2677"]
[Result "0-1"]
[Round "10"]
[TimeControl "180+2"]
[Date "2023.02.21"]
[WhiteClock "0:00:07"]
[BlackClock "0:00:02"]

1. Nf3 {[%clk 0:02:58]}  c5 {[%clk 0:02:56]} 2. b3 {[%clk 0:02:57]}  d5 {[%clk 0:02:52]} 3. Bb2 {[%clk 0:02:57]}  Nc6 {[%clk 0:02:52]} 4. e3 {[%clk 0:02:57]}  a6 {[%clk 0:02:52]} 5. d4 {[%clk 0:02:55]}  Bg4 {[%clk 0:02:45]} 6. Be2 {[%clk 0:02:54]}  Bxf3 {[%clk 0:02:33]} 7. Bxf3 {[%clk 0:02:54]}  cxd4 {[%clk 0:02:33]} 8. Bxd4 {[%clk 0:02:50]}  Nxd4 {[%clk 0:02:20]} 9. Qxd4 {[%clk 0:02:50]}  e6 {[%clk 0:02:21]} 10. O-O {[%clk 0:02:37]}  Be7 {[%clk 0:02:16]} 11. c3 {[%clk 0:02:26]}  Bf6 {[%clk 0:02:11]} 12. Qd2 {[%clk 0:02:21]}  Rc8 {[%clk 0:02:03]} 13. Rc1 {[%clk 0:02:20]}  Ne7 {[%clk 0:01:59]} 14. e4 {[%clk 0:02:08]}  O-O {[%clk 0:01:41]} 15. exd5 {[%clk 0:02:01]}  Nxd5 {[%clk 0:01:25]} 16. Bxd5 {[%clk 0:01:58]}  exd5 {[%clk 0:01:18]} 17. Qd3 {[%clk 0:01:58]}  Qa5 {[%clk 0:01:11]} 18. b4 {[%clk 0:01:56]}  Qc7 {[%clk 0:00:41]} 19. Qxd5 {[%clk 0:01:53]}  Rfd8 {[%clk 0:00:41]} 20. Qf3 {[%clk 0:01:53]}  h6 {[%clk 0:00:30]} 21. g3 {[%clk 0:01:48]}  Rd7 {[%clk 0:00:27]} 22. Na3 {[%clk 0:01:44]}  Qd8 {[%clk 0:00:26]} 23. Rc2 {[%clk 0:01:30]}  Rd3 {[%clk 0:00:22]} 24. Qe2 {[%clk 0:01:26]}  Rcxc3 {[%clk 0:00:15]} 25. Rxc3 {[%clk 0:01:26]}  Rxc3 {[%clk 0:00:16]} 26. Rd1 {[%clk 0:01:22]}  Qc8 {[%clk 0:00:11]} 27. Nb1 {[%clk 0:01:18]}  Rc2 {[%clk 0:00:11]} 28. Rd2 {[%clk 0:01:18]}  Rc1+ {[%clk 0:00:10]} 29. Rd1 {[%clk 0:01:18]}  Rc2 {[%clk 0:00:05]} 30. Rd2 {[%clk 0:01:18]}  Rc1+ {[%clk 0:00:05]} 31. Rd1 {[%clk 0:01:19]}  Qe6 {[%clk 0:00:06]} 32. Qf3 {[%clk 0:00:42]}  Rxd1+ {[%clk 0:00:06]} 33. Qxd1 {[%clk 0:00:43]}  Qxa2 {[%clk 0:00:06]} 34. Nd2 {[%clk 0:00:42]}  Qd5 {[%clk 0:00:04]} 35. Qc2 {[%clk 0:00:40]}  g6 {[%clk 0:00:04]} 36. Ne4 {[%clk 0:00:39]}  Bd4 {[%clk 0:00:04]} 37. Kf1 {[%clk 0:00:32]}  Kg7 {[%clk 0:00:04]} 38. Qd3 {[%clk 0:00:31]}  Qe5 {[%clk 0:00:05]} 39. Nd2 {[%clk 0:00:30]}  Bc3 {[%clk 0:00:04]} 40. Nf3 {[%clk 0:00:30]}  Qf6 {[%clk 0:00:04]} 41. Qe4 {[%clk 0:00:30]}  Bxb4 {[%clk 0:00:04]} 42. Qxb7 {[%clk 0:00:29]}  Bc3 {[%clk 0:00:05]} 43. h4 {[%clk 0:00:27]}  a5 {[%clk 0:00:05]} 44. h5 {[%clk 0:00:27]}  g5 {[%clk 0:00:03]} 45. Nh2 {[%clk 0:00:25]}  a4 {[%clk 0:00:03]} 46. Qa7 {[%clk 0:00:23]}  Qd4 {[%clk 0:00:02]} 47. Qa6 {[%clk 0:00:20]}  Bb2 {[%clk 0:00:01]} 48. Nf3 {[%clk 0:00:19]}  Qd5 {[%clk 0:00:02]} 49. Nd2 {[%clk 0:00:14]}  a3 {[%clk 0:00:02]} 50. Qb6 {[%clk 0:00:07]}  Qd3+ {[%clk 0:00:02]} 51. Ke1 {[%clk 0:00:07]}  Bc3 {[%clk 0:00:02]} 0-1


[Site "https://www.chess.com"]